bitfinex/quotes_SOLUSD_20250518
["timestamp","ask_amount","ask_price","bid_price","bid_amount"]
[1747551542357,24.4274096,169.28,169.17,37.14]
[1747551542358,5.90876861,169.24,169.18,5.91075461]
[1747551542547,5.90876861,169.24,169.17,18.5]
[1747551542548,15.96268787,169.24,169.17,18.5]
[1747551542751,15.96268787,169.24,169.16,46.1954]
[1747551542949,15.96268787,169.24,169.16,52.1067899]
[1747551543748,10.05391926,169.23,169.16,52.1067899]
[1747551543925,5.90876861,169.24,169.16,46.1954]
[1747551544132,5.90876861,169.24,169.16,52.1068759]
[1747551544333,5.90946696,169.22,169.16,52.1068759]
[1747551544752,5.90946696,169.22,169.16,33.5268759]
[1747551545144,5.90946696,169.22,169.16,27.6154]
[1747551545568,5.90946696,169.22,169.16,1.6154]
[1747551545968,15.96314474,169.23,169.16,7.5269287]
[1747551546140,5.90922548,169.23,169.16,7.5269287]
[1747551546353,5.90876861,169.24,169.18,5.91086416]
[1747551547042,5.90807042,169.26,169.19,18.64964886]
[1747551547439,15.96198968,169.26,169.19,18.64964886]
[1747551548462,5.90807042,169.26,169.18,18.64964886]
[1747551548663,15.96198968,169.26,169.18,18.64964886]
[1747551549567,15.96198968,169.26,169.18,24.5604216]
[1747551549862,10.05391926,169.23,169.16,20.26504886]
[1747551550166,10.05391926,169.22,169.16,27.6154]
[1747551550752,10.05391926,169.21,169.14,37.22964886]
[1747551550973,10.05391926,169.21,169.14,18.64964886]
[1747551551777,5.91016548,169.2,169.14,24.56179736]
[1747551551936,8.0534,169.25,169.14,24.56179736]
[1747551552268,5.90850218,169.25,169.18,18.64964886]
[1747551552452,154.16209865,169.26,169.18,20.25874886]
[1747551552654,15.96209865,169.26,169.18,20.25874886]
[1747551553472,18.56,169.27,169.2,18.64964886]
[1747551554270,24.4677288,169.27,169.21,5.9098162]
[1747551555449,24.4677288,169.27,169.2,24.55971031]
[1747551556169,34.52164806,169.27,169.2,24.55971031]
[1747551556679,24.4677288,169.27,169.2,24.55971031]
[1747551556969,34.52164806,169.27,169.2,24.55971031]
[1747551559688,24.4677288,169.27,169.2,24.55971031]
[1747551560673,34.52164806,169.27,169.2,24.55971031]
[1747551561769,24.4677288,169.27,169.2,24.55971031]
[1747551562985,18.56,169.27,169.2,24.55971031]
[1747551564475,24.46773884,169.27,169.2,24.55971031]
[1747551564897,34.5216581,169.27,169.2,24.55971031]
[1747551565075,10.05391926,169.25,169.19,4.23708002]
[1747551565395,39.23704231,169.27,169.18,11.75703853]
[1747551565780,10.05391926,169.25,169.18,11.75703853]
[1747551566496,5.90876861,169.24,169.18,11.75703853]
[1747551566851,15.96268787,169.24,169.18,5.84618002]
[1747551567360,15.96268787,169.24,169.17,4.23708002]
[1747551567361,10.05391926,169.22,169.17,4.23708002]
[1747551568673,5.9098162,169.21,169.17,4.23708002]
[1747551570603,5.9098162,169.21,169.15,24.5614496]
[1747551574993,14.77130916,169.25,169.15,24.5614496]
[1747551575200,10.05391926,169.22,169.15,24.5614496]
[1747551576286,5.9098162,169.21,169.15,24.5614496]
[1747551576801,15.96338944,169.22,169.15,5.91180074]
[1747551577007,5.90947018,169.22,169.15,24.5614496]
[1747551577181,15.96268787,169.24,169.16,18.64964886]
[1747551577377,5.90876861,169.24,169.16,44.64964886]
[1747551577595,172.7216978,169.27,169.2,18.64964886]
[1747551577794,24.46777854,169.27,169.2,38.77244886]
[1747551577981,18.56,169.27,169.2,38.77244886]
[1747551578393,18.56,169.27,169.22,18.64964886]
[1747551579511,24.46787384,169.27,169.22,18.64964886]
[1747551579797,34.5217931,169.27,169.21,18.64964886]
[1747551580173,24.46787384,169.27,169.21,18.64964886]
[1747551580373,24.46787384,169.27,169.21,24.55941161]
[1747551582218,24.46787384,169.27,169.21,18.64964886]
[1747551583328,24.46787384,169.27,169.21,24.55939849]
[1747551588613,166.21596531,169.32,169.21,24.55939849]
[1747551588614,27.82364657,169.32,169.25,18.64964886]
[1747551588786,17.76972731,169.32,169.25,18.64964886]
[1747551588983,11.86370027,169.32,169.25,18.64964886]
[1747551589203,35.54745105,169.34,169.25,18.64964886]
[1747551589414,25.49353179,169.34,169.25,18.64964886]
[1747551589611,35.54745105,169.34,169.25,18.64964886]
[1747551590818,35.54745105,169.34,169.26,5.90807042]
[1747551591316,25.49353179,169.34,169.27,18.64964886]
[1747551591500,35.54745105,169.34,169.27,18.64964886]
[1747551591895,25.49353179,169.34,169.27,24.55704624]
[1747551592100,35.54745105,169.34,169.27,24.55704624]
[1747551593136,25.49353179,169.34,169.27,24.55704624]
[1747551593433,29.64207546,169.34,169.27,24.55704624]
[1747551594437,35.54743588,169.34,169.27,24.55704624]
[1747551594904,10.05391926,169.32,169.26,7.45390821]
[1747551595115,10.05391926,169.33,169.26,7.45390821]
[1747551595914,15.95964053,169.33,169.26,7.45390821]
[1747551598530,19.5881562,169.34,169.26,7.45390821]
[1747551598531,25.49350619,169.34,169.26,7.45390821]
[1747551598697,35.54742545,169.34,169.26,7.45390821]
[1747551599828,10.05391926,169.33,169.26,7.45390821]
[1747551600002,10.05391926,169.31,169.26,1.5459]
[1747551600520,35.54742545,169.34,169.26,7.45394555]
[1747551601423,15.95966952,169.33,169.26,7.45394555]
[1747551602993,5.90575026,169.33,169.26,7.45394555]
[1747551603194,29.64207546,169.34,169.27,18.64964886]
[1747551603397,25.49349737,169.34,169.27,24.55709343]
[1747551603618,35.54741663,169.34,169.27,24.55709343]
[1747551608896,19.5881562,169.34,169.27,24.55709343]
[1747551609101,19.5881562,169.34,169.27,50.55709343]
[1747551609922,25.49344234,169.34,169.27,50.55709343]
[1747551611537,19.5881562,169.34,169.27,50.55709343]
[1747551613550,1.0081562,169.34,169.27,50.55709343]
[1747551613914,6.9134986,169.34,169.27,50.55709343]
[1747551614130,1.0081562,169.34,169.27,50.55709343]
[1747551614334,1.0081562,169.34,169.27,65.3263969]
[1747551615325,1.0081562,169.34,169.33,18.64964886]
[1747551615643,1.0081562,169.34,169.33,24.55527692]
[1747551617615,1.0081562,169.34,169.33,50.55527692]
[1747551620059,1.0081562,169.34,169.33,37.48964886]
[1747551620438,1.0081562,169.34,169.33,43.39527692]
[1747551623252,1.0081562,169.34,169.33,18.64964886]
[1747551623429,1.0081562,169.34,169.32,46.3663]
[1747551624163,1.0081562,169.34,169.3,18.8]
[1747551624332,6.91348384,169.34,169.3,18.8]
[1747551624723,16.9674031,169.34,169.29,4.22697079]
[1747551626173,6.91348384,169.34,169.29,4.22697079]
[1747551626756,6.91348384,169.34,169.29,10.13388842]
[1747551626964,6.91348384,169.34,169.29,4.18063738]
[1747551627270,6.91348384,169.34,169.28,24.55693096]
[1747551629263,1.0081562,169.34,169.28,24.55693096]
[1747551631944,1.0081562,169.34,169.28,39.32536196]
[1747551639592,10.05391926,169.33,169.27,26.16842207]
[1747551639874,10.05391926,169.33,169.27,7.42849927]
[1747551642174,15.95983761,169.33,169.27,7.42849927]
[1747551643284,10.05391926,169.3,169.24,37.34964886]
[1747551643578,10.05391926,169.3,169.23,52.32399044]
[1747551643878,10.05391926,169.29,169.23,27.6549]
[1747551644292,39.4299885,169.33,169.22,18.64964886]
[1747551644293,15.96129166,169.28,169.22,18.64964886]
[1747551644452,10.05391926,169.27,169.21,24.62977664]
[1747551644648,10.05391926,169.27,169.21,18.64964886]
[1747551644877,10.05391926,169.26,169.21,18.64964886]
[1747551645774,15.9620181,169.26,169.21,18.64964886]
[1747551645974,15.9620181,169.26,169.21,24.5594147]
[1747551645975,5.90809884,169.26,169.21,24.5594147]
[1747551646652,5.90809884,169.26,169.21,18.64964886]
[1747551650271,10.05391926,169.25,169.19,27.6549]
[1747551650475,10.05391926,169.25,169.19,46.3549]
[1747551650678,5.90876861,169.24,169.19,46.3549]
[1747551654578,33.52963456,169.27,169.19,52.26538217]
[1747551654782,15.96198968,169.26,169.19,52.26538217]
[1747551655509,5.90807042,169.26,169.19,52.26538217]
[1747551655811,15.96198968,169.26,169.19,52.26538217]
[1747551655977,15.96198968,169.26,169.19,46.3549]
[1747551656304,10.05391926,169.25,169.19,46.3549]
[1747551657099,10.05391926,169.25,169.19,1.6549]
[1747551657471,10.05391926,169.23,169.16,31.9114727]
[1747551657701,10.05391926,169.23,169.16,44.72]
[1747551657898,10.05391926,169.23,169.16,26.0]
[1747551658106,5.90946696,169.22,169.16,26.0]
[1747551658604,5.90946696,169.22,169.16,31.91152298]
[1747551659694,15.96313376,169.23,169.16,31.91152298]
[1747551660097,5.90879051,169.24,169.17,18.64964886]
[1747551660300,15.96202414,169.26,169.17,18.64964886]
[1747551660507,5.90810488,169.26,169.17,18.64964886]
[1747551661115,18.76,169.27,169.21,18.64964886]
[1747551661289,10.05391926,169.29,169.21,37.38964886]
[1747551661995,15.96122278,169.29,169.22,5.90946696]
[1747551662716,10.05391926,169.28,169.21,43.29936437]
[1747551663493,5.90730352,169.29,169.21,43.29936437]
[1747551663802,10.05391926,169.29,169.21,59.71310488]
[1747551663985,18.76,169.3,169.25,18.64964886]
[1747551664514,24.66670487,169.3,169.25,18.64964886]
[1747551664811,15.96033667,169.31,169.25,18.64964886]
[1747551664996,10.05391926,169.29,169.21,7.54891551]
[1747551665190,5.90641741,169.31,169.21,26.28891551]
[1747551665391,10.05391926,169.27,169.21,20.3792]
[1747551665793,10.05391926,169.27,169.21,7.54892321]
[1747551666015,10.05391926,169.28,169.21,7.54892321]
[1747551667408,10.05391926,169.28,169.21,1.6392]
[1747551667630,10.05391926,169.27,169.21,1.6392]
[1747551667804,20.67336089,169.3,169.21,1.6392]
[1747551668120,5.90807042,169.26,169.21,1.6392]
[1747551669895,10.05391926,169.25,169.19,18.8]
[1747551670095,10.05391926,169.25,169.19,18.64964886]
[1747551670922,5.90807042,169.26,169.19,18.64964886]
[1747551671230,15.96129166,169.28,169.19,18.64964886]
[1747551672132,15.96129166,169.28,169.21,18.64964886]
[1747551672938,5.9073724,169.28,169.21,18.64964886]
[1747551673303,5.9073724,169.28,169.22,5.90946696]
[1747551673835,15.96129166,169.28,169.19,18.64964886]
[1747551674819,10.05391926,169.26,169.19,18.64964886]
[1747551675229,10.05391926,169.25,169.19,18.64964886]
[1747551676041,10.05391926,169.25,169.17,24.56086243]
[1747551676210,10.05391926,169.24,169.17,50.56086243]
[1747551676411,10.05391926,169.24,169.17,69.36086243]
[1747551676849,15.96303702,169.23,169.17,18.64964886]
[1747551677147,10.05391926,169.22,169.17,18.64964886]
[1747551677508,10.05391926,169.21,169.14,57.19986191]
[1747551677713,10.05391926,169.22,169.15,37.44964886]
[1747551678847,5.9098162,169.21,169.15,43.3614668]
[1747551680522,5.9098162,169.21,169.15,37.44964886]
[1747551681041,15.96373546,169.21,169.15,37.44964886]
[1747551681258,15.96373546,169.21,169.15,43.36147262]
[1747551681933,5.9098162,169.21,169.15,43.36147262]
[1747551682131,5.9095805,169.22,169.15,43.36147262]
[1747551682324,15.96308896,169.23,169.15,43.36147262]
[1747551682725,5.90887448,169.24,169.15,43.36147262]
[1747551683437,5.90852959,169.25,169.18,26.0]
[1747551683635,5.90852959,169.25,169.18,27.6323]
[1747551684337,5.90852959,169.25,169.18,33.54295126]
[1747551686451,15.96206119,169.26,169.19,24.5599302]
[1747551686658,10.05391926,169.27,169.19,24.5599302]
[1747551687234,5.90702345,169.29,169.19,39.33621721]
[1747551687430,15.96094271,169.29,169.19,39.33621721]
[1747551689043,10.05391926,169.28,169.19,39.33621721]
[1747551689237,10.05391926,169.28,169.19,24.5599302]
[1747551690375,5.90772139,169.27,169.19,24.5599302]
[1747551692039,15.96129598,169.28,169.19,24.5599302]
[1747551692240,15.96103725,169.29,169.19,24.5599302]
[1747551692557,15.96103725,169.29,169.22,26.0]
[1747551692758,15.96103725,169.29,169.22,44.84]
[1747551693266,15.96103725,169.29,169.23,24.55850688]
[1747551693469,15.96070793,169.3,169.23,24.55850688]
[1747551693845,5.90678867,169.3,169.23,24.55850688]
[1747551694352,34.70031496,169.31,169.23,24.55850688]
[1747551694951,34.70031496,169.31,169.25,18.64964886]
[1747551695566,34.70031496,169.31,169.25,24.55794924]
[1747551696267,28.79391926,169.31,169.25,24.55794924]
[1747551696448,18.74,169.31,169.25,24.55794924]
[1747551697173,5.90569595,169.33,169.25,24.55794924]
[1747551697553,32.91352106,169.34,169.25,24.55794924]
[1747551697857,1.0081562,169.34,169.25,65.32899798]
[1747551698058,1.0081562,169.34,169.27,18.64964886]
[1747551698273,1.0081562,169.34,169.29,18.64964886]
[1747551699270,1.0081562,169.34,169.31,18.64964886]
[1747551699468,1.0081562,169.34,169.31,46.26924886]
[1747551700367,1.0081562,169.34,169.31,20.26924886]
[1747551701872,1.0081562,169.34,169.31,26.17550913]
[1747551702373,1.0081562,169.34,169.31,52.17550913]
[1747551702872,1.0081562,169.34,169.33,44.64964886]
[1747551703468,1.0081562,169.34,169.33,50.55527692]
[1747551707782,1.0081562,169.34,169.33,44.64964886]
[1747551708285,1.0081562,169.34,169.29,18.64964886]
[1747551708477,1.0081562,169.34,169.29,63.46964886]
[1747551708984,6.91351059,169.34,169.29,63.46964886]
[1747551709483,1.0081562,169.34,169.29,63.46964886]
[1747551709680,1.0081562,169.34,169.31,18.64964886]
[1747551711562,1.0081562,169.34,169.32,5.90597684]
[1747551712561,1.0081562,169.34,169.33,18.64964886]
[1747551713690,1.0081562,169.34,169.33,24.55527692]
[1747551714219,1.0081562,169.34,169.33,18.64964886]
[1747551714792,1.0081562,169.34,169.32,26.0]
[1747551715468,1.0081562,169.34,169.32,31.90594409]
[1747551718395,1.0081562,169.34,169.32,26.0]
[1747551719200,1.0081562,169.34,169.32,31.90589856]
[1747551720284,1.0081562,169.34,169.32,26.0]
[1747551720493,1.0081562,169.34,169.3,5.9066162]
[1747551720696,6.91344099,169.34,169.3,18.8]
[1747551721079,10.05391926,169.32,169.24,18.84]
[1747551721280,15.96034231,169.31,169.24,50.74876861]
[1747551721481,15.96034231,169.31,169.25,18.64964886]
[1747551722299,15.95993704,169.32,169.25,18.64964886]
[1747551722497,11.06207546,169.34,169.25,18.64964886]
[1747551723101,16.96745009,169.34,169.25,18.64964886]
[1747551723602,16.96745009,169.34,169.27,18.64964886]
[1747551723802,6.91353083,169.34,169.27,18.64964886]
[1747551723979,1.0081562,169.34,169.27,44.64964886]
[1747551724175,1.0081562,169.34,169.31,18.64964886]
[1747551724407,1.0081562,169.34,169.31,39.14444886]
[1747551725778,1.0081562,169.34,169.31,18.88]
[1747551727298,1.0081562,169.34,169.31,24.7862938]
[1747551728399,1.0081562,169.34,169.31,18.88]
[1747551730187,1.0081562,169.34,169.31,24.78631822]
[1747551730724,1.0081562,169.34,169.31,18.88]
[1747551731605,1.0081562,169.34,169.3,31.90657548]
[1747551735804,1.0081562,169.34,169.3,26.0]
[1747551737196,16.96744829,169.34,169.27,18.64964886]
[1747551737399,10.05391926,169.33,169.27,37.48964886]
[1747551738210,5.90597684,169.32,169.27,37.48964886]
[1747551739238,5.90597684,169.32,169.27,18.64964886]
[1747551742238,15.9598961,169.32,169.27,18.64964886]
[1747551743627,15.9598961,169.32,169.26,39.2948]
[1747551744637,15.9598961,169.32,169.26,37.68]
[1747551744838,15.9598961,169.32,169.26,18.64964886]
[1747551745415,5.90597684,169.32,169.26,18.64964886]
[1747551745832,5.90597684,169.32,169.26,24.55771222]
[1747551747047,5.90562806,169.33,169.26,18.64964886]
[1747551747212,15.95954732,169.33,169.26,18.64964886]
[1747551747939,10.05391926,169.32,169.26,18.64964886]
[1747551748236,20.66969821,169.33,169.26,18.64964886]
[1747551748237,30.72361747,169.33,169.26,18.64964886]
[1747551749339,10.05391926,169.31,169.26,18.64964886]
[1747551750709,5.90667454,169.3,169.26,18.64964886]
[1747551752260,5.90632567,169.31,169.26,18.64964886]
[1747551753944,10.05391926,169.3,169.24,44.76]
[1747551754813,30.72605911,169.31,169.24,26.0]
[1747551755346,5.90632567,169.31,169.25,18.64964886]
[1747551755518,10.05391926,169.31,169.25,18.64964886]
[1747551757828,5.90667454,169.3,169.25,18.64964886]
[1747551758028,30.72728015,169.3,169.24,26.0]
[1747551760647,30.72728015,169.3,169.23,18.64964886]
[1747551760826,30.72728015,169.3,169.2,4.23563348]
[1747551760827,10.05391926,169.26,169.2,4.23563348]
[1747551761033,10.05391926,169.25,169.2,4.23563348]
[1747551762246,5.90876861,169.24,169.2,4.23563348]
[1747551762467,15.96268787,169.24,169.2,4.23563348]
[1747551763320,15.96268787,169.24,169.19,26.0]
[1747551763856,5.90876861,169.24,169.19,26.0]
[1747551766768,5.90876861,169.24,169.2,18.64964886]
[1747551766959,5.90807042,169.26,169.2,18.64964886]
[1747551767755,15.96198968,169.26,169.2,18.64964886]
[1747551767971,10.05391926,169.25,169.19,26.0]
[1747551768867,5.90876861,169.24,169.19,26.0]
[1747551771249,10.05391926,169.22,169.14,1.6586]
[1747551771553,10.05391926,169.19,169.15,18.64964886]
[1747551771761,18.76,169.23,169.14,1.6586]
[1747551771762,10.05391926,169.18,169.14,1.6586]
[1747551772334,10.05391926,169.18,169.13,18.64964886]
[1747551773157,5.91121357,169.17,169.13,18.64964886]
[1747551773454,5.91121357,169.17,169.11,24.63322743]
[1747551773455,15.96513283,169.17,169.11,18.64964886]
[1747551775046,10.05391926,169.16,169.11,18.64964886]
[1747551775373,5.91158623,169.16,169.11,18.64964886]
[1747551776165,15.96521919,169.17,169.11,24.56290211]
[1747551776366,54.16489253,169.19,169.11,24.56290211]
[1747551776367,5.91092714,169.18,169.11,24.56290211]
[1747551776540,15.9648464,169.18,169.11,24.56290211]
[1747551777246,15.9648464,169.18,169.11,18.64964886]
[1747551777962,10.05391926,169.17,169.11,18.64964886]
[1747551778552,15.9648464,169.18,169.11,18.64964886]
[1747551778850,15.9648464,169.18,169.11,24.5628939]
[1747551780469,5.91092714,169.18,169.11,24.5628939]
[1747551780653,49.44212802,169.19,169.11,24.5628939]
[1747551780967,55.3527054,169.19,169.11,24.5628939]
[1747551781164,39.38820876,169.19,169.12,26.0]
[1747551781553,39.38820876,169.19,169.13,18.64964886]
[1747551781789,39.38820876,169.19,169.17,18.64964886]
[1747551782456,18.76,169.25,169.17,18.64964886]
[1747551782655,18.76,169.25,169.18,5.91086416]
[1747551782861,24.66846106,169.25,169.18,5.91086416]
[1747551783474,10.05391926,169.24,169.17,18.64964886]
[1747551783667,10.05391926,169.23,169.17,18.64964886]
[1747551784674,10.05391926,169.24,169.17,18.64964886]
[1747551785171,28.81391926,169.25,169.18,18.64964886]
[1747551785572,18.76,169.25,169.18,18.64964886]
[1747551785775,34.72244703,169.25,169.18,18.64964886]
[1747551786775,34.72244703,169.25,169.18,24.56048217]
[1747551787358,10.05391926,169.24,169.18,18.64964886]
[1747551787941,10.05391926,169.23,169.17,18.64964886]
[1747551788140,10.05391926,169.23,169.16,33.44548422]
[1747551788559,10.05391926,169.24,169.17,18.64964886]
[1747551789475,34.72244703,169.25,169.18,5.91086416]
[1747551790380,10.05391926,169.24,169.17,24.56077112]
[1747551790560,10.05391926,169.22,169.16,27.534]
[1747551791312,10.05391926,169.23,169.16,27.534]
[1747551791494,15.96313062,169.23,169.16,33.44548806]
[1747551792158,15.96313062,169.23,169.17,18.64964886]
[1747551792367,15.9627478,169.24,169.17,18.64964886]
[1747551792564,10.05391926,169.24,169.17,18.64964886]
[1747551792879,18.76,169.25,169.17,18.64964886]
[1747551793881,18.76,169.25,169.18,5.91086416]
[1747551797162,5.90778682,169.27,169.19,18.64964886]
[1747551797356,10.05391926,169.29,169.19,44.64964886]
[1747551798393,15.96099415,169.29,169.21,18.64964886]
[1747551798557,15.96099415,169.29,169.21,37.38964886]
[1747551799880,15.96099415,169.29,169.23,18.64964886]
[1747551801560,10.05391926,169.28,169.23,18.64964886]
[1747551802179,15.9614421,169.28,169.23,18.64964886]
[1747551803788,10.05391926,169.27,169.2,5.90991675]
[1747551803962,10.05391926,169.27,169.21,18.64964886]
[1747551804688,15.96198968,169.26,169.2,18.7]
[1747551805891,10.05391926,169.25,169.19,26.0]
[1747551806073,10.05391926,169.23,169.17,24.56076452]
[1747551806391,10.05391926,169.23,169.18,18.74]
[1747551806775,5.90946696,169.22,169.18,18.74]
[1747551807083,5.90946696,169.22,169.17,18.64964886]
[1747551809089,15.96338622,169.22,169.16,20.274]
[1747551809304,10.05391926,169.2,169.14,37.38964886]
[1747551810290,5.91016548,169.2,169.14,37.38964886]
[1747551810478,5.91016548,169.2,169.14,43.30189285]
[1747551812589,5.91016548,169.2,169.14,37.38964886]
[1747551813091,5.91016548,169.2,169.14,43.30189286]
[1747551814391,5.91016548,169.2,169.14,24.56189286]
[1747551814598,18.72,169.24,169.14,43.28189286]
[1747551814781,28.77391926,169.24,169.14,43.28189286]
[1747551815812,5.90935776,169.23,169.14,43.28189286]
[1747551816304,18.72,169.24,169.17,26.0]
[1747551816505,18.72,169.24,169.18,20.24184886]
[1747551816723,20.2398,169.29,169.18,20.24184886]
[1747551816880,5.9073724,169.28,169.18,26.47234886]
[1747551817075,34.68103891,169.29,169.18,26.47234886]
[1747551817900,24.62711965,169.29,169.18,26.47234886]
[1747551818303,24.62711965,169.29,169.2,18.64964886]
[1747551818478,24.62711965,169.29,169.21,18.74]
[1747551819683,24.62711965,169.29,169.23,18.64964886]
[1747551820302,34.68103891,169.29,169.23,18.64964886]
[1747551820498,10.05391926,169.28,169.22,18.64964886]
[1747551821503,10.05391926,169.28,169.21,18.74]
[1747551821701,10.05391926,169.26,169.19,18.64964886]
[1747551821881,5.90841949,169.25,169.19,37.36964886]
[1747551822789,5.90841949,169.25,169.19,43.28014351]
[1747551823899,10.05391926,169.28,169.19,43.28014351]
[1747551824103,5.9073724,169.28,169.19,43.28014351]
[1747551824615,24.62708806,169.29,169.19,58.05643052]
[1747551825105,18.72,169.29,169.21,18.64964886]
[1747551825611,5.90643849,169.31,169.21,18.64964886]
[1747551825823,12.91585327,169.32,169.27,18.64964886]
[1747551826030,11.06207546,169.34,169.27,18.64964886]
[1747551826174,1.0081562,169.34,169.27,18.64964886]
[1747551827490,6.91352163,169.34,169.27,18.64964886]
[1747551828209,6.91352163,169.34,169.27,24.55712366]
[1747551829087,1.0081562,169.34,169.27,24.55712366]
[1747551829417,1.0081562,169.34,169.27,50.55712366]
[1747551836403,6.91358995,169.34,169.27,50.55712366]
[1747551837095,16.96750921,169.34,169.27,50.55712366]
[1747551837433,10.05391926,169.33,169.28,18.74]
[1747551840333,1.0081562,169.34,169.33,18.64964886]
[1747551841135,1.0081562,169.34,169.32,1.6655]
[1747551841313,1.0081562,169.34,169.31,5.90623255]
[1747551842152,1.0081562,169.34,169.3,5.90657046]
[1747551844148,1.0081562,169.34,169.31,18.64964886]
[1747551845881,1.0081562,169.34,169.31,24.55583093]
[1747551846048,1.0081562,169.34,169.29,18.64964886]
[1747551846744,1.0081562,169.34,169.29,24.55667231]
[1747551847464,10.05391926,169.33,169.28,18.72]
[1747551847656,10.05391926,169.33,169.26,69.29763875]
[1747551848334,15.95974938,169.33,169.26,69.29763875]
[1747551850646,5.90583012,169.33,169.26,69.29763875]
[1747551850834,1.0081562,169.34,169.26,69.29763875]
[1747551851035,1.0081562,169.34,169.3,18.64964886]
[1747551851340,1.0081562,169.34,169.32,18.64964886]
[1747551852453,1.0081562,169.34,169.32,24.55540196]
[1747551853252,1.0081562,169.34,169.32,43.29540196]
[1747551853450,1.0081562,169.34,169.32,37.38964886]
[1747551854778,1.0081562,169.34,169.32,43.29558729]
[1747551861071,1.0081562,169.34,169.32,49.52008729]
[1747551867854,1.0081562,169.34,169.33,22.88528234]
[1747551870286,1.0081562,169.34,169.33,28.7909104]
[1747551874588,1.0081562,169.34,169.33,47.4709104]
[1747551883300,1.0081562,169.34,169.33,66.1509104]
[1747551883903,1.0081562,169.34,169.33,61.91527692]
[1747551884207,1.0081562,169.34,169.33,61.89527692]
[1747551887277,1.0081562,169.34,169.33,43.23527692]
[1747551887687,1.0081562,169.34,169.33,61.87527692]
[1747551887883,1.0081562,169.34,169.32,4.23563348]
[1747551888690,6.91349975,169.34,169.32,4.23563348]
[1747551888999,16.96741901,169.34,169.32,4.23563348]
[1747551891697,1.0081562,169.34,169.32,4.23563348]
[1747551893814,1.0081562,169.34,169.33,18.64964886]
[1747551895109,1.0081562,169.34,169.33,24.55527692]
[1747551895290,1.0081562,169.34,169.32,4.23563348]
[1747551895686,1.0081562,169.34,169.32,10.14156856]
[1747551895886,1.0081562,169.34,169.33,18.64964886]
[1747551897513,1.0081562,169.34,169.33,24.55527692]
[1747551898514,1.0081562,169.34,169.32,26.0]
[1747551899905,1.0081562,169.34,169.32,50.54564264]
[1747551901600,1.0081562,169.34,169.33,18.64964886]
[1747551901798,1.0081562,169.34,169.33,24.55527692]
[1747551906128,28.802614,169.45,169.37,18.64964886]
[1747551906329,28.802614,169.45,169.38,18.62]
[1747551907928,28.802614,169.45,169.4,18.64964886]
[1747551908621,34.70409174,169.45,169.4,18.64964886]
[1747551908946,28.802614,169.45,169.4,18.64964886]
[1747551910053,28.802614,169.45,169.4,24.55277884]
[1747551911720,44.7580542,169.45,169.4,18.64964886]
[1747551913214,28.802614,169.45,169.4,24.5528015]
[1747551914948,34.70415374,169.45,169.4,24.5528015]
[1747551915148,34.70415374,169.45,169.4,18.64964886]
[1747551915856,28.802614,169.45,169.4,24.55276232]
[1747551922770,28.802614,169.45,169.4,39.31073162]
[1747551925159,28.802614,169.45,169.44,18.64964886]
[1747551925862,28.802614,169.45,169.44,24.551443]
[1747551926538,28.802614,169.45,169.39,5.90353621]
[1747551926738,28.802614,169.45,169.42,18.64964886]
[1747551929882,28.802614,169.45,169.42,24.55208422]
[1747551931078,28.302614,169.45,169.42,24.55208422]
[1747551934177,28.302614,169.45,169.42,18.64964886]
[1747551935085,28.302614,169.45,169.42,24.55207812]
[1747551951598,28.302614,169.45,169.44,44.64964886]
[1747551951775,28.302614,169.45,169.44,63.22964886]
[1747551952692,28.302614,169.45,169.44,69.131443]
[1747551957582,28.302614,169.45,169.44,75.246543]
[1747551966503,24.7194,169.56,169.49,18.64964886]
[1747551966807,24.7194,169.56,169.51,18.64964886]
[1747551968406,24.7194,169.56,169.51,24.54894945]
[1747551968792,30.61702661,169.56,169.51,24.54894945]
[1747551969301,24.7194,169.56,169.51,24.54894945]
[1747551970411,5.89587878,169.61,169.51,69.12894945]
[1747551970892,10.01942118,169.6,169.51,69.12894945]
[1747551971502,15.91529996,169.61,169.51,83.87734187]
[1747551976703,15.91586759,169.6,169.51,83.87734187]
[1747551977309,12.30418925,169.6,169.51,83.87734187]
[1747551978327,6.40774284,169.6,169.51,83.87734187]
[1747551979705,12.3036901,169.61,169.51,83.87734187]
[1747551980017,8.0351,169.62,169.51,83.87734187]
[1747551980018,14.44284284,169.62,169.51,83.87734187]
[1747551980388,20.3384193,169.62,169.51,83.87734187]
[1747551981407,23.94049158,169.62,169.51,83.87734187]
[1747551983742,13.93067646,169.62,169.51,83.87734187]
[1747551983902,10.00981512,169.6,169.51,83.87734187]
[1747551984429,15.90613041,169.6,169.51,83.87734187]
[1747551984820,15.90613041,169.6,169.51,65.29734187]
[1747551985027,10.00981512,169.58,169.52,37.14]
[1747551985234,10.00981512,169.57,169.52,18.56]
[1747551985398,10.00981512,169.56,169.52,37.14]
[1747551986017,10.00981512,169.57,169.52,37.14]
[1747551986524,5.89761736,169.56,169.52,37.14]
[1747551987022,5.89761736,169.56,169.52,18.56]
[1747551987231,15.90743248,169.56,169.52,18.56]